Cogmind - Beta 16 @@@ ROGUE MODE // 2025.11.02 @ 20:22:01 Player: SUBSUB Result: Destroyed by YI-UF0 with YI-UF0's Doublenader Performance ------------- Evolutions (1) 500 Regions Visited (3) 600 Robots Destroyed (20) 100 Value Destroyed (267) 267 Prototype IDs (1) 20 Alien Tech Used (0) 0 Bonus (0) 0 TOTAL SCORE: 1487 Bonus ------- None Cogmind --------- Core Integrity 0/400 Matter 286/300 Energy 96/100 System Corruption 2% Temperature Cool (0) Movement Rolling (80) Location -9/Mines Parts ------- > --- POWER (1) -------- (None) > --- PROPULSION (3) --- Wheel > --- UTILITY (3) ------ Visual Processing Unit Experimental Sensor Array > --- WEAPON (2) ------- Grenade Launcher > --- INVENTORY (5) ---- Weight Redist. System Mini Grenade Launcher Mini Grenade Launcher Mining Laser Peak State ------------ > --- POWER ------------ Light Nuclear Core > --- PROPULSION ------- Wheel Wheel > --- UTILITY ---------- Visual Processing Unit Experimental Sensor Array > --- WEAPON ----------- EM Pulse Gun Grenade Launcher > --- INVENTORY -------- Weight Redist. System Mini Grenade Launcher Mini Grenade Launcher Mining Laser [Rating: 18] Favorites ----------- Power Light Ion Engine Engine Light Ion Engine Power Core Light Nuclear Core Propulsion VTOL Module Leg Aluminum Leg Wheel Wheel Hover Unit Improved Hover Unit Flight Unit VTOL Module Utility Visual Processing Unit Device Sensor Array Storage Small Storage Unit Processor Visual Processing Unit Weapon Light Assault Rifle Energy Gun EM Pulse Gun Ballistic Gun Light Assault Rifle Launcher Mini Grenade Launcher Build | -11 -10 -9 -9 ------- Run | Yrd Mat Mat Min Slots Evolved 2 | . . 2 . Power . | . . . . Propulsion 1 | . . 1 . Utility 1 | . . 1 . Weapon . | . . . . Parts Attached 23 | 7 5 2 9 Power 3 | 1 1 . 1 Engine 2 | 1 1 . . Core 1 | . . . 1 Reactor . | . . . . Propulsion 9 | 2 2 . 5 Treads . | . . . . Leg 2 | 2 . . . Wheel 4 | . . . 4 Hover 1 | . . . 1 Flight 2 | . 2 . . Utility 6 | 2 1 2 1 Device 3 | 1 . 1 1 Storage 1 | 1 . . . Processor 2 | . 1 1 . Hackware . | . . . . Protection . | . . . . Artifact . | . . . . Weapon 5 | 2 1 . 2 Energy Gun 1 | . . . 1 Energy Cannon . | . . . . Ballistic Gun 2 | 2 . . . Ballistic Cannon . | . . . . Launcher 2 | . 1 . 1 Special Weapon . | . . . . Impact Weapon . | . . . . Slashing Weapon . | . . . . Piercing Weapon . | . . . . Special Melee Weapon . | . . . . Unidentified Prototypes 1 | . . . 1 Parts Lost 13 | . . . 13 Power 2 | . . . 2 Propulsion 6 | . . . 6 Utility 2 | . . . 2 Weapon 3 | . . . 3 Highest Loss Streak 4 | . . . 4 To Critical Strikes . | . . . . Average Backups 5 | 4 6 5 4 Power . | . . . . Propulsion . | 1 1 . . Utility 1 | . 1 1 1 Weapon 3 | 1 2 4 3 Tool/Special . | . . . . Unused Backups 10 | . 5 1 4 Power 1 | . 1 . . Propulsion 2 | . 2 . . Utility 3 | . 1 1 1 Weapon 4 | . 1 . 3 Tool/Special . | . . . . Average Slot Usage (%) 79 | . 98 87 66 Engine 8 | . 14 11 3 Core 1 | . . . 2 Leg 3 | . 18 . . Wheel 3 | . . . 7 Flight 12 | . 9 22 7 Device 12 | . 14 11 12 Storage 2 | . 9 . . Processor 14 | . 2 21 14 Energy Gun 1 | . . . 2 Ballistic Gun 10 | . 23 11 5 Launcher 8 | . 4 11 9 Peak Build Rating 18 | 7 10 12 18 Average Rating 10 | 5 7 11 12 On Entrance 7 | . 7 10 12 Avg Prop Armor Cover (%) . | . . . . Naked Turns . | . . . . Heaviest Build 12 | 12 12 7 11 Greatest Support 26 | 20 20 8 26 Greatest Overweight (x) 3 | 3 1 . 2 Average Overweight (x) . | . . . . Largest Inventory Capacity 8 | 8 8 5 5 Average Capacity 5 | 7 7 5 5 Most Carried 7 | 7 7 5 5 Average Carried 5 | 4 6 5 4 Final Capacity 8 | 8 5 5 5 Final Carried 7 | 7 5 5 4 Class Distribution -------------------- 51% | Mutant 48% | Sprinter Dominant Class ---------------- Mutant | -10/Materials Sprinter | -9/Materials Mutant | -9/Mines Resources | -11 -10 -9 -9 ----------- Run | Yrd Mat Mat Min Matter Collected 736 | 350 162 . 224 Remotely . | . . . . Salvage Created 421 | 185 168 50 18 Parts 42 | 12 24 2 4 Haulers Intercepted 2 | . 1 1 . Recyclers Shooed 1 | 1 . . . Parts Field Recycled . | . . . . Retrieved Matter . | . . . . Parts Self-Destructed . | . . . . Prevented . | . . . . Parts Restored . | . . . . Kills | -11 -10 -9 -9 ------- Run | Yrd Mat Mat Min Combat Hostiles Destroyed 10 | . 6 . 4 Guns 4 | . 4 . . AOE 6 | . 2 . 4 Classes Destroyed 7 | 2 4 . 1 Tunneler 7 | 5 2 . . Hauler 2 | . 1 1 . Recycler 1 | 1 . . . Operator 1 | . 1 . . Swarmer 6 | . 3 . 3 Grunt 3 | . 3 . . Assembled 1 | . . . 1 Best Kill Streak 6 | 6 6 1 3 Combat Bots Only 3 | . 3 . 3 Max Kills in Single Turn 2 | 1 2 1 2 Gunslinging . | . . . . Exploded 2 | . 1 . 2 Melee . | . . . . Uniques/NPCs Destroyed . | . . . . Combat | -11 -10 -9 -9 -------- Run | Yrd Mat Mat Min Hostile Shots Fired 52 | . 14 . 38 Missed 22 | . 7 . 15 Hits 30 | . 7 . 23 Projectile 30 | . 7 . 23 AOE 20 | . . . 20 Damage Taken 861 | . 69 . 792 Core 431 | . 11 . 420 Absorbed by Shields . | . . . . Core Remaining (%) 97 | 100 95 . . Volleys Fired 58 | 20 18 8 12 Largest 2 | 2 2 1 2 Hottest 70 | 40 50 30 70 Shots Fired 96 | 40 32 8 16 Gun 76 | 40 25 5 6 Cannon . | . . . . Launcher 20 | . 7 3 10 Special . | . . . . Kinetic 73 | 40 25 5 3 Thermal . | . . . . Explosive 20 | . 7 3 10 Electromagnetic 3 | . . . 3 Robot Hit Streak 6 | 3 4 5 6 Robot Miss Streak 4 | 3 4 . 4 Penetration Max . | . . . . Secondary Targets . | . . . . Shots Hit Robots 44 | 19 12 5 8 Core Hits 30 | 9 14 2 5 Critical Kills 1 | 1 . . . Critical Parts Destroyed . | . . . . Critical Strikes 1 | 1 . . . Destroy 1 | 1 . . . Melee Attacks . | . . . . Impact . | . . . . Slashing . | . . . . Piercing . | . . . . Sneak Attacks . | . . . . Combat Hostiles . | . . . . Follow-up Attacks . | . . . . Damage Inflicted 1061 | 182 473 45 361 Guns 373 | 182 132 45 14 Cannons . | . . . . Explosions 688 | . 341 . 347 Melee . | . . . . Ramming . | . . . . Kinetic 373 | 182 132 45 14 Thermal . | . . . . Explosive 688 | . 341 . 347 Electromagnetic . | . . . . Impact . | . . . . Slashing . | . . . . Piercing . | . . . . Highest Corruption 2 | . . 2 2 Average Corruption 2 | . . 2 2 Corruption Purged . | . . . . Corruption Blocked . | . . . . Effects 14 | . . 6 8 Message Errors 4 | . . 1 3 Matter Fused 3 | . . 1 2 Heat Flow Errors 2 | . . 1 1 Energy Discharges 1 | . . 1 . Data Loss (minor) 2 | . . . 2 Alerts 2 | . . 2 . Overload Shots . | . . . . Overflow Damage 16 | . . . 16 Projectiles . | . . . . Explosions 16 | . . . 16 Melee . | . . . . Knockbacks . | . . . . Impact . | . . . . Kinetic . | . . . . Secondary . | . . . . Self-Inflicted Damage 16 | . . . 16 Shots 1 | . . . 1 Rammed . | . . . . Targets Rammed . | . . . . Kicked . | . . . . Crushed . | . . . . Highest Temperature 236 | . 34 236 207 Average Temperature 69 | . 16 105 95 Received Heat Transfer 18 | . 18 . . Siege Activations . | . . . . Martial Activations . | . . . . Shielding Activations . | . . . . Robots Disrupted . | . . . . Combat Hostiles . | . . . . Robots Corrupted . | . . . . Combat Hostiles . | . . . . Parts Fried . | . . . . Impact Corruptions . | . . . . Robots Melted . | . . . . Combat Hostiles . | . . . . Parts Melted . | . . . . Heat Transferred . | . . . . Parts Sabotaged . | . . . . Parts Stolen . | . . . . Parts Stripped . | . . . . Power Chain Reactions . | . . . . Alert | -11 -10 -9 -9 ------- Run | Yrd Mat Mat Min Maximum Alert Level . | . . . . Low Security (%) 100 | 100 100 100 100 Level 1 . | . . . . Level 2 . | . . . . Level 3 . | . . . . Level 4 . | . . . . Level 5 . | . . . . High Security . | . . . . Max Security . | . . . . Peak Influence 174 | 10 174 98 100 Initial 68 | . . 68 10 Average 25 | 1 61 27 14 Influence Increases 547 | 30 284 96 137 Destroy 0b10 Robot/C 180 | . 120 . 60 Destroy 0b10 Robot/NC 55 | 30 20 5 . Destroy Leader 44 | . 32 2 10 Successful Hack 20 | . 15 5 . Select Force Hacks 30 | . 30 . . Disable Machine 45 | . . 30 15 Destroy Structure 113 | . 37 24 52 Partial Spotted 45 | . 15 30 . Lose Combat Pursuer 15 | . 15 . . Influence Decreases 547 | 30 120 231 166 Entered New Map 115 | . . 96 19 Time Decay 391 | 30 120 135 106 Lost Part 41 | . . . 41 Squads Dispatched 2 | . 2 . . Investigation 1 | . 1 . . Extermination . | . . . . Reinforcement 1 | . 1 . . Assault . | . . . . Garrison . | . . . . Intercept . | . . . . Searches Triggered . | . . . . Construction Impeded . | . . . . Haulers Reinforced . | . . . . Active Scanning Responses . | . . . . Cargo Convoy Interrupts . | . . . . Stealth | -11 -10 -9 -9 --------- Run | Yrd Mat Mat Min Distress Signals 1 | . . . 1 Communications Jammed . | . . . . Distress Signals . | . . . . Times Spotted 24 | . 8 3 13 Peak Tracking Total 4 | . 3 3 4 Tactical Retreats 7 | . 1 . 6 Traps | -11 -10 -9 -9 ------- Run | Yrd Mat Mat Min Traps Triggered 1 | . . 1 . Indirectly . | . . . . Trap Hack Attempts . | . . . . Triggered . | . . . . Disarmed . | . . . . Reprogrammed . | . . . . Reused . | . . . . Traps Extracted . | . . . . Installed . | . . . . Triggered . | . . . . Machines | -11 -10 -9 -9 ---------- Run | Yrd Mat Mat Min Machines Disabled 3 | . . 2 1 Max in Single Turn 1 | . . 1 1 Machines Repaired . | . . . . Machines Dismantled . | . . . . Machines Sabotaged . | . . . . Overloaded Fab Kills . | . . . . Hacking | -11 -10 -9 -9 --------- Run | Yrd Mat Mat Min Machines Accessed 5 | . 3 2 . Terminals 4 | . 2 2 . Fabricators . | . . . . Repair Stations . | . . . . Recycling Units 1 | . 1 . . Scanalyzers . | . . . . Garrison Access . | . . . . Total Hacks 14 | . 9 5 . Successful 8 | . 7 1 . Failed 6 | . 2 4 . Catastrophic 2 | . . 2 . Database Lockouts . | . . . . Manual 14 | . 9 5 . Terminals 13 | . 8 5 . Fabricators . | . . . . Repair Stations . | . . . . Recycling Units 1 | . 1 . . Scanalyzers . | . . . . Garrison Access . | . . . . Terminal Hacks 3 | . 3 . . Robot Analysis 3 | . 3 . . Fabricator Hacks . | . . . . Repair Station Hacks . | . . . . Recycling Unit Hacks . | . . . . Scanalyzer . | . . . . Garrison Access Hacks . | . . . . Unauthorized Hacks 5 | . 4 1 . Terminals 4 | . 3 1 . Botnet 3 | . 2 1 . Operators 1 | . 1 . . Fabricators . | . . . . Repair Stations . | . . . . Recycling Units 1 | . 1 . . Tunnel 1 | . 1 . . Scanalyzers . | . . . . Garrison Access . | . . . . Data Cores Recovered . | . . . . Used . | . . . . Hacking Detections 3 | . 2 1 . Full Trace Events . | . . . . Feedback Events . | . . . . Feedback Blocked . | . . . . Robot Schematics Acquired . | . . . . Robots Built . | . . . . Authchips . | . . . . Time . | . . . . Total Robot Build Rating . | . . . . Part Schematics Acquired . | . . . . Parts Built . | . . . . Authchips . | . . . . Time . | . . . . Total Part Build Rating . | . . . . Part Studies Acquired . | . . . . Parts Repaired . | . . . . Time . | . . . . Parts Recycled . | . . . . Recycled Matter . | . . . . Retrieved Matter . | . . . . Retrieved Components . | . . . . Parts Scanalyzed . | . . . . Part Schematics Acquired . | . . . . Parts Damaged . | . . . . Bothacking | -11 -10 -9 -9 ------------ Run | Yrd Mat Mat Min Used RIF Installer . | . . . . Robots Hacked . | . . . . Non-combat . | . . . . Combat . | . . . . Robot Hacks Applied . | . . . . Relay Couplers Released . | . . . . Fabnet Peak Effective % . | . . . . Robots Rewired . | . . . . Allies Hacked . | . . . . Hacks Repelled . | . . . . Allies | -11 -10 -9 -9 -------- Run | Yrd Mat Mat Min Total Allies 3 | . . . 3 Largest Group 3 | . . . 3 Highest-Rated Group 40 | . . . 40 Highest-Rated Ally 16 | . . . 16 Total Orders . | . . . . Ally Attacks 1 | . . . 1 Total Damage 13 | . . . 13 Kills . | . . . . Allies Corrupted . | . . . . Allies Melted . | . . . . Intel | -11 -10 -9 -9 ------- Run | Yrd Mat Mat Min Active Infowar (turns) 1497 | 43 311 454 689 Optics 1127 | . . 438 689 Sensors 1131 | . . 442 689 Seismic 368 | 43 311 14 . Robot Analysis Total 3 | . 3 . . Derelict Logs Recovered 1 | . . . 1 Drone Launches . | . . . . Drone Recoveries . | . . . . Exploration | -11 -10 -9 -9 ------------- Run | Yrd Mat Mat Min Turns Passed 1614 | 160 311 454 689 Spaces Moved 1708 | 71 314 434 889 Core 145 | 14 . . 131 Treads . | . . . . Legs 201 | 57 144 . . Wheels 208 | . . . 208 Hover 60 | . . . 60 Flight 1094 | . 170 434 490 Fastest Speed 32 | 50 32 32 32 Average Speed 53 | 121 72 32 51 Slowest Speed 200 | 200 190 32 150 Overloaded Moves . | . . . . Propulsion Burnouts . | . . . . Robots Hopped 9 | . . . 9 Potential Cave-ins . | . . . . Cave-ins Triggered . | . . . . Exploration Rate (%) 39 | 5 38 21 93 Regions Visited 3 Branch Regions 1 Pre-discovered Areas 1 | . 1 . . Known Exits Taken . | . . . . Unknown Exits Taken 3 | 1 1 1 . Scrap Searched 1 | . . . 1 Spaces Dug 5 | . 5 . . Terrain Destroyed 146 | . 44 23 79 Melee . | . . . . Projectile . | . . . . AOE 146 | . 44 23 79 Terrain Rammed . | . . . . Walls Destroyed . | . . . . Machines Disabled . | . . . . Actions | -11 -10 -9 -9 --------- Run | Yrd Mat Mat Min Total 2311 | 105 369 743 1094 Wait 507 | . 22 293 192 Move 1687 | 70 313 433 871 Hop 9 | . . . 9 Pick Up 15 | 8 3 3 1 Fast Attach 16 | 6 1 2 7 Attach 3 | 1 . . 2 Detach 1 | . 1 . . Swap 4 | . 4 . . Drop 11 | . 7 4 . Fire 58 | 20 18 8 12 Melee . | . . . . Ram . | . . . . Kick . | . . . . Crush . | . . . . Escape Stasis . | . . . . Rewire . | . . . . Trap . | . . . . Miscellaneous . | . . . . Route ------- -11/Scrapyard -10/Materials -9/Materials -9/Mines (discovered 1 exit: [*Mat]) History --------- Turn | Location | Event 10 | -11/Scrapyard | Discovered new exit (range 16) 161 | -11/Scrapyard | Entered Materials 314 | -10/Materials | Build established: Mutant 459 | -10/Materials | Discovered new exit (range 5) 472 | -10/Materials | Entered another Materials area 472 | -9/Materials | Evolved 2 slots: Propulsion x1, Utility x1 665 | -9/Materials | Build established: Sprinter 909 | -9/Materials | Discovered new exit (range 4) 926 | -9/Materials | Entered Mines 970 | -9/Mines | Discovered new exit (range 5) 1019 | -9/Mines | Assembled infested the area 1024 | -9/Mines | Assisted by a Guerilla fighting off Assembled 1060 | -9/Mines | Found a hidden stash of uninstalled traps 1085 | -9/Mines | YI-UF0 nonchalantly dropped a Grenade Launcher on the ground 1091 | -9/Mines | Assisted by bots powering up and referring to "LRC-V3" 1100 | -9/Mines | A weapon hastily lodged in a ceiling crevice suddenly fell to the ground 1189 | -9/Mines | Lost 3 allies 1198 | -9/Mines | Lost 4 parts (1p2n1u) 1341 | -9/Mines | Found a damaged Exp. Sensor Array with a note attached 1345 | -9/Mines | Found Prototype Device 1345 | -9/Mines | Identified Exp. Sensor Array 1434 | -9/Mines | Core integrity fell below 50% 1445 | -9/Mines | Learned location of 1 exit from Materials 1483 | -9/Mines | Lost 4 parts (2n1u1w) 1502 | -9/Mines | Build established: Mutant 1614 | -9/Mines | Core integrity fell below 20% 1615 | -9/Mines | Destroyed by YI-UF0 with YI-UF0's Doublenader Last Messages --------------- 01591_ U-05 Engineer builds a Wall. 01595_ U-05 Engineer lays Concrete. 01596_ U-05 Engineer builds a Wall. 01600_ The unstable cave ceiling collapses. 01602_ U-05 Engineer builds a Wall. 01605_ The unstable cave ceiling collapses. 01606_ U-05 Engineer lays Concrete. 01606_ Wheel destroyed. 01606_ Lgt. Nuclear Core destroyed. 01606_ YI-UF0: "BLAM!" 01606_ U-05 Engineer destroyed. 01606_ YI-UF0: "BAROOM!" 01606_ K-01 Serf destroyed. 01607_ Acquired 8 matter. 01612_ Acquired 1 matter. 01612_ K-01 Serf collects debris. 01613_ The unstable cave ceiling collapses. 01613_ Lgt. Ion Engine crushed. 01613_ EM Pulse Gun destroyed. 01614_ The unstable cave ceiling collapses. Map ----- +----------------------------------------------------+ | ??????# #????# ##### ##?????????? | | ??????# #????## #??????????? | | ??????# #?????### #??????????? | | ??????# #???????# ## ######### #??????????? | | ??????# ####????# ###### # ## ##??# #??????????? | | ??????# #????# ! ###### # ##?# #??????????? | | ??????# ## ######=%###### ### #??????????? | | ??????# ## ## # # | [% *== ## #??????????? | | ?###### ## ## #### ###### %*! ## #??????????? | | ?# ### # #### | ### #??????????? | | ?# # #### #### #??????????? | | ## ### ###### # # # #??????????? | | #?# ## # ######?????? | | #?# # # # # # ##????? | | ####?### ### # ## r ## #????? | | #??#### # ## #### = ####??? | | #??# #### ##?## ##?? | | #??# ## ##??####### # # # #### | | #??# ### ##???### # # % " | | ##??# #?## ###????# # | | ????# #??## ##?????## # ### | | ????# #???#####??????# g # # # | | ????# #??????????????# # # ### | | ????# #??????????????# # # | | ????# #???????????????# = #! #### ## | | ????# #???????????????# @* # # ##??# #? | | ????# #???????#####???# # ### # #???# #? | | ????# ################ ##?## ####???# #? | | ###?# # # #=# #??# = #?????# #? | | ########?# # ###k####?## %= ##????## #? | | #??#### ### ? # #??# #????## # | | #??# #### #??# #????# | | #?## ###??## [ ##????# | | #?# ######## # ## ####?????### #??????# | | #?# #?# ##??????????# ##???????# | | ### ##?####### #########???# ##????????# | | ## ######???## #???# ????????# | | ## ##???#### ######?#???### #???????# | | #?###### #????# #?????? #???????## | | #?# #????# #??????? ????????# | | ##?# #### #????# #???????? ???????# | | #### #??# #????# #????????? ??????# | | #??# #??###?#????????? ?????## | | ######??# #?## ##????????? ?????## | | ##???????# ### #?????????? ??????? | | # #####???###### ## #??????????? ?????? | | ## ##???????# ## < #??????????? ????? | | ?# #????????# ###### ##???????????? #???? | | ?# ##????????# ###??????????????#???? | | ?# #?????????######## ##????????????????????? | +----------------------------------------------------+ Best States ------------- Heat Dissipation 28 Energy Generation 14 Energy Capacity 160 Matter Stores 300 Matter Capacity 300 Sight Range 18 Robot Scan Range 20 Terrain Scan Density 10 Evasion (%) 63 Targeting Accuracy 5 Item Schematics ----------------- None Robot Schematics ------------------ None Fabricated ------------ Nothing Repaired ---------- Nothing Studied --------- None Alien Tech Used ----------------- None Achievements -------------- I Have A Map? Spot Them First Challenges ------------ None Game ------ Seed NetworkDecoyWartreads Manual? 0 Play Time 00:31:15 Cumulative 61.5 hours Start 2025.11.02 @ 19:50:37 End 2025.11.02 @ 20:22:01 Sessions 1 Manual Loads 0 Difficulty Rogue Special Mode None Game No. 73 Rogue 73 Adventurer 0 Explorer 0 Win Type - Total 0 Types 0/0/0/0/0/0/0/0/0/0 Lore% 50 Gallery% 34 Achievement% 20 Wizard Run 0 Options --------- Layout 0 ASCII 0 Keyboard 1 Movement Vi Keybinds 0 Fullscreen 1 Font 18/SmallcapsGlow Map View 76x50 Zoom Use 0% Tactical HUD 1 Map Filters NONE Filters NONE Steam 1 RUN: 8bb5d450-994c-46a5-a266-cec00d8b5d9f